fUST/lending_fUST_20250227
["ID","MTS","AMOUNT","RATE_DAILY","PERIOD"]
[354611791,1740595906331,-785.21,0.00055342,120]
[354611793,1740595906340,-834.81,0.00055342,120]
[354611795,1740595906350,-3016.52,0.00055342,120]
[354611797,1740595906361,-2867.38,0.00055342,120]
[354611800,1740595906371,-684.79,0.00055342,120]
[354611802,1740595906381,-928.1,0.00055342,120]
[354611804,1740595906391,-511.43,0.00055342,120]
[354611806,1740595906400,-163172.77,0.00055342,7]
[354611808,1740595906410,-567.25,0.00055342,120]
[354611810,1740595906419,-4605.54,0.00055342,120]
[354611812,1740595906429,-884.36,0.00055342,120]
[354611814,1740595906439,-573.56,0.00055342,120]
[354611816,1740595906448,-1964.79,0.00055342,120]
[354611818,1740595906457,-29115.5,0.00055342,120]
[354611820,1740595906467,-644.01,0.00055342,120]
[354611822,1740595906476,-1853.52,0.00055342,120]
[354611824,1740595906486,-500.0,0.00055342,120]
[354611826,1740595906496,-627.73,0.00055342,120]
[354611828,1740595906505,-1150.38,0.00055342,120]
[354611830,1740595906515,-820.33,0.00055342,120]
[354611832,1740595906524,-1232.27,0.00055342,120]
[354611834,1740595906534,-8198.21,0.00055342,120]
[354611836,1740595906544,-1218.92,0.00055342,120]
[354611838,1740595906554,-8691.74,0.00055342,120]
[354611841,1740595906564,-1991.01,0.00055342,120]
[354611843,1740595906574,-820.98,0.00055342,120]
[354611845,1740595906583,-555.9,0.00055342,120]
[354611847,1740595906592,-35881.26,0.00055342,120]
[354611849,1740595906602,-1000.0,0.00055342,2]
[354611850,1740595906612,-2923.8,0.00055342,120]
[354611853,1740595906622,-949.77,0.00055342,120]
[354611855,1740595906631,-500.0,0.00055342,120]
[354611856,1740595906640,-14356.2,0.00055342,120]
[354611858,1740595906649,-689.35,0.00055342,120]
[354611861,1740595906658,-853.36,0.00055342,120]
[354611863,1740595906667,-4865.11,0.00055342,120]
[354611865,1740595906677,-2475.11,0.00055342,120]
[354611867,1740595906686,-2671.56,0.00055342,120]
[354611869,1740595906696,-5089.13,0.00055342,120]
[354611871,1740595906705,-514.99,0.00055342,120]
[354611873,1740595906715,-44424.48,0.00055342,6]
[354611875,1740595906724,-520.61,0.00055342,120]
[354611877,1740595906734,-1173.4,0.00055342,120]
[354611879,1740595906744,-500.0,0.00055342,120]
[354611881,1740595906753,-3489.83,0.00055342,120]
[354611883,1740595906763,-1066.43,0.00055342,120]
[354611885,1740595906773,-1957.38,0.00055342,120]
[354611887,1740595906782,-2424.79,0.00055342,120]
[354611889,1740595906792,-500.0,0.00055342,120]
[354611891,1740595906802,-21424.0,0.00055342,120]
[354611893,1740595906812,-519.69,0.00055342,120]
[354611895,1740595906822,-526.05,0.00055342,120]
[354611897,1740595906831,-1666.71,0.00055342,120]
[354611899,1740595906841,-3965.85,0.00055342,120]
[354611901,1740595906850,-500.0,0.00055342,120]
[354611903,1740595906861,-788.51,0.00055342,120]
[354611905,1740595906871,-1619.69,0.00055342,120]
[354611907,1740595906881,-1722.02,0.00055342,120]
[354611909,1740595906890,-4778.1,0.00055342,120]
[354611911,1740595906899,-2593.09,0.00055342,120]
[354611913,1740595906909,-1690.26,0.00055342,120]
[354611915,1740595906918,-812.11,0.00055342,120]
[354611917,1740595906928,-710.16,0.00055342,120]
[354611919,1740595906937,-1536.25,0.00055342,120]
[354611921,1740595906948,-626.19,0.00055342,120]
[354611923,1740595906958,-541.13,0.00055342,120]
[354611925,1740595906967,-512.95,0.00055342,120]
[354611927,1740595906977,-1851.36,0.00055342,120]
[354611929,1740595906986,-10264.39,0.00055342,120]
[354611931,1740595906999,-662.82,0.00055342,120]
[354611933,1740595907009,-810.19,0.00055342,120]
[354611935,1740595907020,-991.77,0.00055342,120]
[354611937,1740595907030,-3331.35,0.00055342,120]
[354611939,1740595907040,-5881.5,0.00055342,120]
[354611941,1740595907050,-1213.93,0.00055342,120]
[354611943,1740595907059,-2374.13,0.00055342,120]
[354611945,1740595907069,-2465.59,0.00055342,120]
[354611947,1740595907079,-782.08,0.00055342,120]
[354611949,1740595907088,-334.87531421,0.00055342,120]
[354611951,1740595907097,-500.0,0.00055342,120]
[354611953,1740595907108,-1294.2,0.00055342,120]
[354611955,1740595907118,-7797.57,0.00055342,120]
[354611957,1740595907128,-200.4943008,0.00055343,30]
[354611959,1740595907137,-300.0,0.000554,30]
[354611961,1740595907147,-1500.0,0.00055471,15]
[354611963,1740595907155,-1500.0,0.00055471,15]
[354611965,1740595907164,-314.46080446,0.00055471,15]
[354611967,1740595907173,-200.0,0.0005554,99]
[354611968,1740595907183,-350.0,0.00055596,15]
[354611970,1740595907193,-196.0,0.00055612,15]
[354611972,1740595907202,-500.0,0.00055616,120]
[354611974,1740595907212,-828.49,0.00055616,120]
[354611976,1740595907222,-500.0,0.00055616,120]
[354611978,1740595907231,-840.04,0.00055616,120]
[354611980,1740595907241,-799.37,0.00055616,120]
[354611982,1740595907251,-500.0,0.00055616,120]
[354611984,1740595907260,-500.0,0.00055616,120]
[354611986,1740595907270,-500.0,0.00055616,120]
[354611988,1740595907280,-526.23,0.00055616,120]
[354611990,1740595907289,-525.22,0.00055616,120]
[354611992,1740595907299,-692.43,0.00055616,120]
[354611994,1740595907309,-566.11,0.00055616,14]
[354611997,1740595907319,-1177.15,0.00055616,120]
[354611999,1740595907329,-500.0,0.00055616,120]
[354612000,1740595907338,-500.0,0.00055616,120]
[354612002,1740595907348,-1194.96,0.00055616,120]
[354612004,1740595907358,-500.0,0.00055616,120]
[354612006,1740595907367,-1734.78,0.00055616,120]
[354612008,1740595907376,-1448.26,0.00055616,120]
[354612010,1740595907385,-500.0,0.00055616,120]
[354612012,1740595907395,-500.0,0.00055616,120]
[354612014,1740595907404,-772.59,0.00055616,120]
[354612016,1740595907413,-576.98,0.00055616,120]
[354612018,1740595907423,-599.45,0.00055616,120]
[354612020,1740595907432,-500.0,0.00055616,120]
[354612022,1740595907443,-582.65,0.00055616,120]
[354612024,1740595907452,-500.0,0.00055616,120]
[354612026,1740595907462,-518.67,0.00055616,120]
[354612028,1740595907471,-524.39,0.00055616,120]
[354612030,1740595907481,-540.34,0.00055616,120]
[354612032,1740595907491,-707.66,0.00055616,120]
[354612034,1740595907500,-879.42,0.00055616,120]
[354612036,1740595907510,-894.65,0.00055616,120]
[354612038,1740595907520,-500.0,0.00055616,120]
[354612040,1740595907529,-523.35,0.00055616,120]
[354612042,1740595907539,-500.0,0.00055616,120]
[354612044,1740595907548,-264.84377771,0.00055616,120]
[354612046,1740595907557,-500.0,0.00055616,120]
[354612048,1740595907566,-630.3,0.00055616,120]
[354612050,1740595907576,-500.0,0.00055616,120]
[354612052,1740595907586,-500.0,0.00055616,120]
[354612053,1740595907595,-757.41,0.00055616,120]
[354612055,1740595907606,-618.62,0.00055616,120]
[354612057,1740595907616,-1759.91,0.00055616,120]
[354612059,1740595907626,-1105.48,0.00055616,120]
[354612061,1740595907636,-849.13,0.00055616,120]
[354612063,1740595907646,-500.0,0.00055616,120]
[354612065,1740595907656,-578.35,0.00055616,120]
[354612067,1740595907666,-827.78,0.00055616,120]
[354612069,1740595907675,-1260.45,0.00055616,120]
[354612071,1740595907684,-624.52,0.00055616,120]
[354612073,1740595907694,-1553.65,0.00055616,120]
[354612075,1740595907703,-515.01,0.00055616,120]
[354612077,1740595907714,-558.26,0.00055616,120]
[354612079,1740595907723,-293.03795943,0.00055616,120]
[354612081,1740595907733,-527.02,0.00055616,120]
[354612083,1740595907743,-700.01,0.00055616,120]
[354612085,1740595907752,-751.69,0.00055616,120]
[354612087,1740595907762,-500.0,0.00055616,15]
[354612089,1740595907772,-1613.85,0.00055616,120]
[354612091,1740595907781,-1300.61,0.00055616,120]
[354612093,1740595907791,-667.88,0.00055616,120]
[354612095,1740595907800,-2143.47,0.00055616,120]
[354612097,1740595907810,-872.97,0.00055616,120]
[354612099,1740595907820,-500.0,0.00055616,120]
[354612101,1740595907831,-1346.61,0.00055616,120]
[354612103,1740595907840,-2396.98,0.00055616,120]
[354612105,1740595907850,-500.0,0.00055616,120]
[354612107,1740595907865,-640.62,0.00055616,120]
[354612120,1740595907985,-1154.76,0.00055616,120]
[354612122,1740595908000,-500.0,0.00055616,120]
[354612124,1740595908010,-500.0,0.00055616,120]
[354612126,1740595908020,-500.0,0.00055616,120]
[354612128,1740595908030,-500.0,0.00055616,120]
[354612130,1740595908041,-1463.13,0.00055616,120]
[354612132,1740595908054,-500.0,0.00055616,120]
[354612135,1740595908065,-2977.1,0.00055616,120]
[354612136,1740595908075,-1010.42,0.00055616,120]
[354612138,1740595908086,-3444.22,0.00055616,120]
[354612140,1740595908096,-522.19,0.00055616,30]
[354612142,1740595908109,-2884.86,0.00055616,120]
[354612144,1740595908120,-989.6,0.00055616,120]
[354612146,1740595908131,-1121.27,0.00055616,120]
[354612148,1740595908142,-500.0,0.00055616,120]
[354612151,1740595908153,-1101.44,0.00055616,120]
[354612152,1740595908163,-500.0,0.00055616,45]
[354612155,1740595908174,-1764.14,0.00055616,120]
[354612157,1740595908185,-588.25,0.00055616,120]
[354612158,1740595908195,-2377.1,0.00055616,120]
[354612160,1740595908205,-852.55,0.00055616,120]
[354612162,1740595908215,-1100.79,0.00055616,120]
[354612164,1740595908225,-1552.98,0.00055616,120]
[354612166,1740595908236,-500.0,0.00055616,120]
[354612168,1740595908246,-500.0,0.00055616,120]
[354612170,1740595908257,-543.36,0.00055616,120]
[354612172,1740595908267,-797.98,0.00055616,120]
[354612174,1740595908278,-951.27,0.00055616,120]
[354612176,1740595908288,-500.0,0.00055616,120]
[354612178,1740595908298,-888.97,0.00055616,120]
[354612180,1740595908309,-612.57,0.00055616,120]
[354612182,1740595908319,-2699.87,0.00055616,120]
[354612184,1740595908329,-1580.11,0.00055616,120]
[354612186,1740595908338,-500.0,0.00055616,120]
[354612188,1740595908348,-1704.51,0.00055616,120]
[354612190,1740595908360,-500.0,0.00055616,120]
[354612192,1740595908371,-788.27,0.00055616,120]
[354612194,1740595908382,-1099.83,0.00055616,120]
[354612196,1740595908392,-1902.4,0.00055616,120]
[354612198,1740595908402,-878.04,0.00055616,120]
[354612200,1740595908413,-500.0,0.00055616,120]
[354612202,1740595908424,-500.0,0.00055616,120]
[354612204,1740595908437,-500.0,0.00055616,120]
[354612206,1740595908448,-500.0,0.00055616,120]
[354612208,1740595908458,-1372.49,0.00055616,120]
[354612210,1740595908468,-500.0,0.00055616,120]
[354612212,1740595908479,-2314.27,0.00055616,120]
[354612214,1740595908489,-1486.63,0.00055616,120]
[354612216,1740595908499,-822.39,0.00055616,120]
[354612218,1740595908510,-901.59,0.00055616,120]
[354612220,1740595908520,-1677.06,0.00055616,120]
[354612222,1740595908531,-1205.34,0.00055616,120]
[354612224,1740595908541,-500.0,0.00055616,120]
[354612226,1740595908551,-238.93280612,0.00055616,120]
[354612228,1740595908562,-2294.05,0.00055616,120]
[354612230,1740595908572,-500.0,0.00055616,120]
[354612232,1740595908582,-1120.61,0.00055616,120]
[354612234,1740595908592,-604.64,0.00055616,120]
[354612236,1740595908601,-500.0,0.00055616,120]
[354612238,1740595908614,-1074.36,0.00055616,120]
[354612240,1740595908624,-500.0,0.00055616,120]
[354612242,1740595908634,-527.7,0.00055616,120]
[354612244,1740595908644,-806.28,0.00055616,120]
[354612246,1740595908654,-1834.97,0.00055616,120]
[354612248,1740595908665,-500.0,0.00055616,120]
[354612250,1740595908675,-841.31,0.00055616,120]
[354612252,1740595908686,-1149.59,0.00055616,120]
[354612254,1740595908696,-500.0,0.00055616,120]
[354612256,1740595908706,-500.0,0.00055616,120]
[354612258,1740595908715,-522.75378461,0.00055616,120]
[354612260,1740595908725,-504.48,0.00055616,120]
[354612262,1740595908735,-610.98,0.00055616,120]
[354612264,1740595908745,-500.0,0.00055616,120]
[354612266,1740595908755,-500.0,0.00055616,120]
[354612268,1740595908766,-919.11,0.00055616,120]
[354612270,1740595908776,-1139.22,0.00055616,120]
[354612272,1740595908786,-1427.81,0.00055616,120]
[354612274,1740595908796,-3966.28,0.00055616,120]
[354612276,1740595908807,-500.0,0.00055616,21]
[354612278,1740595908816,-1179.25,0.00055616,120]
[354612279,1740595908827,-643.49,0.00055616,120]
[354612281,1740595908837,-9738.58,0.00055616,120]
[354612283,1740595908847,-801.82,0.00055616,120]
[354612285,1740595908858,-304.42151355,0.00055616,120]
[354612289,1740595908881,-911.86,0.00055616,120]
[354612292,1740595908901,-500.0,0.00055616,120]
[354612295,1740595908922,-552.77,0.00055616,120]
[354612298,1740595908943,-500.05,0.00055616,120]
[354612301,1740595908968,-587.37,0.00055616,120]
[354612304,1740595908986,-500.0,0.00055616,120]
[354612306,1740595909011,-11052.45,0.00055616,120]
[354612309,1740595909026,-517.75,0.00055616,120]
[354612312,1740595909047,-3684.76,0.00055616,120]
[354612315,1740595909068,-3499.84,0.00055616,120]
[354612317,1740595909087,-1015.05,0.00055616,120]
[354612320,1740595909103,-13581.8,0.00055616,120]
[354612323,1740595909125,-1570.34,0.00055616,120]
[354612326,1740595909142,-15292.47,0.00055616,120]
[354612328,1740595909158,-500.0,0.00055616,120]
[354612331,1740595909172,-1020.31,0.00055616,120]
[354612333,1740595909190,-690.39,0.00055616,120]
[354612336,1740595909206,-3105.4,0.00055616,120]
[354612338,1740595909222,-834.44,0.00055616,30]
[354612341,1740595909238,-2309.16,0.00055616,120]
[354612344,1740595909254,-10799.99,0.00055616,120]
[354612346,1740595909269,-159.51,0.00055616,120]
[354612349,1740595909285,-850.01,0.00055616,120]
[354612351,1740595909301,-500.0,0.00055616,120]
[354612354,1740595909316,-4233.08,0.00055616,120]
[354612356,1740595909332,-4180.32,0.00055616,120]
[354612359,1740595909347,-2800.4,0.00055616,120]
[354612361,1740595909365,-2084.49,0.00055616,120]
[354612364,1740595909382,-583.3,0.00055616,120]
[354612366,1740595909398,-2951.73,0.00055616,120]
[354612369,1740595909414,-2431.59,0.00055616,120]
[354612370,1740595909431,-1918.79,0.00055616,120]
[354612371,1740595909447,-1679.17,0.00055616,120]
[354612372,1740595909462,-514.65,0.00055616,120]
[354612373,1740595909479,-2627.04,0.00055616,120]
[354612374,1740595909495,-1409.36,0.00055616,120]
[354612375,1740595909511,-785.21,0.00055616,120]
[354612376,1740595909527,-834.81,0.00055616,120]
[354612377,1740595909543,-3016.52,0.00055616,120]
[354612378,1740595909558,-2867.38,0.00055616,120]
[354612379,1740595909573,-684.79,0.00055616,120]
[354612380,1740595909588,-928.1,0.00055616,120]
[354612381,1740595909604,-511.43,0.00055616,120]
[354612382,1740595909621,-163172.77,0.00055616,7]
[354612383,1740595909637,-567.25,0.00055616,120]
[354612384,1740595909653,-4605.54,0.00055616,120]
[354612385,1740595909668,-884.36,0.00055616,120]
[354612386,1740595909683,-573.56,0.00055616,120]
[354612389,1740595909698,-29115.5,0.00055616,120]
[354612391,1740595909713,-1964.79,0.00055616,120]
[354612394,1740595909729,-644.01,0.00055616,120]
[354612396,1740595909744,-1853.52,0.00055616,120]
[354612399,1740595909759,-627.73,0.00055616,120]
[354612401,1740595909773,-1150.38,0.00055616,120]
[354612404,1740595909789,-500.0,0.00055616,120]
[354612406,1740595909804,-820.33,0.00055616,120]
[354612409,1740595909819,-1232.27,0.00055616,120]
[354612411,1740595909835,-8198.21,0.00055616,120]
[354612414,1740595909852,-1218.92,0.00055616,120]
[354612417,1740595909871,-8691.74,0.00055616,120]
[354612420,1740595909902,-1991.01,0.00055616,120]
[354612423,1740595909917,-820.98,0.00055616,120]
[354612425,1740595909932,-555.9,0.00055616,120]
[354612428,1740595909949,-35881.26,0.00055616,120]
[354612430,1740595909966,-1000.0,0.00055616,2]
[354612432,1740595909981,-2923.8,0.00055616,120]
[354612435,1740595909997,-949.77,0.00055616,120]
[354612437,1740595910015,-500.0,0.00055616,120]
[354612440,1740595910030,-14356.2,0.00055616,120]
[354612442,1740595910045,-689.35,0.00055616,120]
[354612445,1740595910060,-853.36,0.00055616,120]
[354612447,1740595910074,-4865.11,0.00055616,120]
[354612450,1740595910089,-2475.11,0.00055616,120]
[354612452,1740595910104,-2671.56,0.00055616,120]
[354612455,1740595910123,-5089.13,0.00055616,120]
[354612457,1740595910135,-514.99,0.00055616,120]
[354612459,1740595910145,-44424.48,0.00055616,6]
[354612461,1740595910155,-520.61,0.00055616,120]
[354612463,1740595910164,-1173.4,0.00055616,120]
[354612465,1740595910174,-500.0,0.00055616,120]
[354612467,1740595910186,-3489.83,0.00055616,120]
[354612469,1740595910196,-1066.43,0.00055616,120]
[354612471,1740595910207,-1957.38,0.00055616,120]
[354612492,1740595910375,-516.04404404,0.00055616,120]
[354612497,1740595910452,-2424.79,0.00055616,120]
[354612499,1740595910464,-21424.0,0.00055616,120]
[354612501,1740595910474,-519.69,0.00055616,120]
[354612503,1740595910484,-526.05,0.00055616,120]
[354612505,1740595910494,-1666.71,0.00055616,120]
[354612507,1740595910504,-3965.85,0.00055616,120]
[354612509,1740595910513,-500.0,0.00055616,120]
[354612511,1740595910523,-788.51,0.00055616,120]
[354612513,1740595910533,-1619.69,0.00055616,120]
[354612515,1740595910543,-1722.02,0.00055616,120]
[354612517,1740595910553,-4778.1,0.00055616,120]
[354612519,1740595910563,-2593.09,0.00055616,120]
[354612521,1740595910573,-1690.26,0.00055616,120]
[354612523,1740595910583,-812.11,0.00055616,120]
[354612525,1740595910593,-710.16,0.00055616,120]
[354612527,1740595910604,-1536.25,0.00055616,120]
[354612529,1740595910616,-626.19,0.00055616,120]
[354612531,1740595910626,-541.13,0.00055616,120]
[354612533,1740595910635,-512.95,0.00055616,120]
[354612535,1740595910645,-1851.36,0.00055616,120]
[354612537,1740595910655,-662.82,0.00055616,120]
[354612539,1740595910664,-10264.39,0.00055616,120]
[354612541,1740595910674,-810.19,0.00055616,120]
[354612543,1740595910684,-991.77,0.00055616,120]
[354612545,1740595910694,-3331.35,0.00055616,120]
[354612547,1740595910703,-5881.5,0.00055616,120]
[354612549,1740595910713,-1213.93,0.00055616,120]
[354612551,1740595910723,-2374.13,0.00055616,120]
[354612553,1740595910732,-2465.59,0.00055616,120]
[354612555,1740595910742,-782.08,0.00055616,120]
[354612557,1740595910752,-500.0,0.00055616,120]
[354612559,1740595910762,-1294.2,0.00055616,120]
[354612561,1740595910771,-7797.57,0.00055616,120]
[354612563,1740595910781,-151.0,0.00055616,120]
[354612565,1740595910791,-153.0,0.00055685,60]
[354612567,1740595910801,-500.0,0.0005589,120]
[354612569,1740595910810,-828.49,0.0005589,120]
[354612571,1740595910820,-500.0,0.0005589,120]
[354612573,1740595910829,-840.04,0.0005589,120]
[354612575,1740595910839,-799.37,0.0005589,120]
[354612577,1740595910848,-445.42433287,0.0005589,120]
[354612579,1740595910858,-388.41173715,0.0005589,120]
[354612581,1740595910871,-324.54125621,0.0005589,120]
[354612583,1740595910881,-526.23,0.0005589,120]
[354612585,1740595910916,-525.22,0.0005589,120]
[354612588,1740595910927,-692.43,0.0005589,120]
[354612590,1740595910938,-566.11,0.0005589,14]
[354612592,1740595910950,-1177.15,0.0005589,120]
[354612594,1740595910960,-216.40990958,0.0005589,120]
[354612596,1740595910971,-500.0,0.0005589,120]
[354612598,1740595910981,-1194.96,0.0005589,120]
[354612600,1740595910991,-500.0,0.0005589,120]
[354612602,1740595911007,-1734.78,0.0005589,120]
[354612604,1740595911017,-1448.26,0.0005589,120]
[354612606,1740595911026,-500.0,0.0005589,120]
[354612608,1740595911036,-500.0,0.0005589,120]
[354612610,1740595911046,-772.59,0.0005589,120]
[354612611,1740595911055,-576.98,0.0005589,120]
[354612613,1740595911065,-599.45,0.0005589,120]
[354612615,1740595911074,-462.58185592,0.0005589,120]
[354612617,1740595911085,-582.65,0.0005589,120]
[354612619,1740595911095,-404.00932695,0.0005589,120]
[354612621,1740595911105,-518.67,0.0005589,120]
[354612623,1740595911117,-524.39,0.0005589,120]
[354612625,1740595911127,-540.34,0.0005589,120]
[354612627,1740595911137,-707.66,0.0005589,120]
[354612629,1740595911146,-879.42,0.0005589,120]
[354612631,1740595911155,-894.65,0.0005589,120]
[354612633,1740595911164,-500.0,0.0005589,120]
[354612635,1740595911175,-523.35,0.0005589,120]
[354612637,1740595911184,-500.0,0.0005589,120]
[354612639,1740595911194,-500.0,0.0005589,120]
[354612641,1740595911204,-500.0,0.0005589,120]
[354612643,1740595911214,-630.3,0.0005589,120]
[354612645,1740595911225,-500.0,0.0005589,120]
[354612647,1740595911234,-757.41,0.0005589,120]
[354612649,1740595911244,-618.62,0.0005589,120]
[354612651,1740595911253,-1759.91,0.0005589,120]
[354612653,1740595911263,-1105.48,0.0005589,120]
[354612655,1740595911273,-849.13,0.0005589,120]
[354612657,1740595911282,-500.0,0.0005589,120]
[354612659,1740595911292,-578.35,0.0005589,120]
[354612661,1740595911303,-827.78,0.0005589,120]
[354612663,1740595911312,-1260.45,0.0005589,120]
[354612665,1740595911322,-624.52,0.0005589,120]
[354612667,1740595911332,-1553.65,0.0005589,120]
[354612669,1740595911341,-515.01,0.0005589,120]
[354612671,1740595911351,-558.26,0.0005589,120]
[354612673,1740595911363,-700.01,0.0005589,120]
[354612675,1740595911372,-527.02,0.0005589,120]
[354612677,1740595911382,-751.69,0.0005589,120]
[354612679,1740595911392,-500.0,0.0005589,15]
[354612681,1740595911402,-1613.85,0.0005589,120]
[354612683,1740595911412,-1300.61,0.0005589,120]
[354612685,1740595911422,-667.88,0.0005589,120]
[354612687,1740595911433,-2143.47,0.0005589,120]
[354612689,1740595911443,-872.97,0.0005589,120]
[354612691,1740595911454,-500.0,0.0005589,120]
[354612693,1740595911464,-1346.61,0.0005589,120]
[354612695,1740595911474,-2396.98,0.0005589,120]
[354612697,1740595911483,-500.0,0.0005589,120]
[354612699,1740595911493,-640.62,0.0005589,120]
[354612701,1740595911503,-1154.76,0.0005589,120]
[354612703,1740595911513,-500.0,0.0005589,120]
[354612705,1740595911523,-500.0,0.0005589,120]
[354612707,1740595911534,-185.11539352,0.0005589,120]
[354612709,1740595911544,-500.0,0.0005589,120]
[354612711,1740595911554,-1463.13,0.0005589,120]
[354612713,1740595911564,-500.0,0.0005589,120]
[354612715,1740595911574,-2977.1,0.0005589,120]
[354612717,1740595911583,-1010.42,0.0005589,120]
[354612719,1740595911593,-3444.22,0.0005589,120]
[354612721,1740595911603,-522.19,0.0005589,30]
[354612723,1740595911616,-2884.86,0.0005589,120]
[354612725,1740595911626,-989.6,0.0005589,120]
[354612727,1740595911636,-1121.27,0.0005589,120]
[354612729,1740595911646,-540.91843139,0.0005589,120]
[354612731,1740595911656,-1101.44,0.0005589,120]
[354612733,1740595911665,-500.0,0.0005589,45]
[354612735,1740595911675,-1764.14,0.0005589,120]
[354612737,1740595911686,-588.25,0.0005589,120]
[354612739,1740595911695,-2377.1,0.0005589,120]
[354612741,1740595911705,-852.55,0.0005589,120]
[354612743,1740595911715,-1100.79,0.0005589,120]
[354612745,1740595911725,-1552.98,0.0005589,120]
[354612747,1740595911734,-500.0,0.0005589,120]
[354612749,1740595911744,-500.0,0.0005589,120]
[354612751,1740595911754,-543.36,0.0005589,120]
[354612753,1740595911764,-797.98,0.0005589,120]
[354612755,1740595911773,-951.27,0.0005589,120]
[354612757,1740595911783,-500.0,0.0005589,120]
[354612759,1740595911793,-888.97,0.0005589,120]
[354612761,1740595911803,-612.57,0.0005589,120]
[354612763,1740595911812,-2699.87,0.0005589,120]
[354612765,1740595911822,-1580.11,0.0005589,120]
[354612767,1740595911831,-500.0,0.0005589,120]
[354612769,1740595911843,-1704.51,0.0005589,120]
[354612771,1740595911853,-500.0,0.0005589,120]
[354612773,1740595911864,-788.27,0.0005589,120]
[354612775,1740595911874,-1099.83,0.0005589,120]
[354612777,1740595911904,-1902.4,0.0005589,120]
[354612779,1740595911914,-878.04,0.0005589,120]
[354612782,1740595911924,-500.0,0.0005589,120]
[354612784,1740595911934,-500.0,0.0005589,120]
[354612786,1740595911943,-500.0,0.0005589,120]
[354612788,1740595911958,-500.0,0.0005589,120]
[354612790,1740595911968,-1372.49,0.0005589,120]
[354612792,1740595911977,-500.0,0.0005589,120]
[354612794,1740595911987,-2314.27,0.0005589,120]
[354612796,1740595912001,-1486.63,0.0005589,120]
[354612797,1740595912011,-822.39,0.0005589,120]
[354612799,1740595912021,-901.59,0.0005589,120]
[354612802,1740595912031,-1677.06,0.0005589,120]
[354612804,1740595912041,-1205.34,0.0005589,120]
[354612806,1740595912051,-500.0,0.0005589,120]
[354612808,1740595912061,-2294.05,0.0005589,120]
[354612810,1740595912071,-500.0,0.0005589,120]
[354612812,1740595912081,-1120.61,0.0005589,120]
[354612814,1740595912091,-604.64,0.0005589,120]
[354612816,1740595912100,-500.0,0.0005589,120]
[354612818,1740595912110,-1074.36,0.0005589,120]
[354612820,1740595912121,-500.0,0.0005589,120]
[354612822,1740595912131,-527.7,0.0005589,120]
[354612823,1740595912141,-806.28,0.0005589,120]
[354612824,1740595912150,-1834.97,0.0005589,120]
[354612825,1740595912159,-500.0,0.0005589,120]
[354612826,1740595912168,-841.31,0.0005589,120]
[354612827,1740595912178,-1149.59,0.0005589,120]
[354612828,1740595912188,-500.0,0.0005589,120]
[354612829,1740595912197,-500.0,0.0005589,120]
[354612830,1740595912207,-504.48,0.0005589,120]
[354612832,1740595912217,-610.98,0.0005589,120]
[354612834,1740595912227,-500.0,0.0005589,120]